fUSD/lending_fUSD_20250616
["ID","MTS","AMOUNT","RATE_DAILY","PERIOD"]
[366148089,1750087840251,-218272.602266,0.00015998,2]
[366148091,1750087840260,-490.0,0.00015998,2]
[366148093,1750087840271,-490.0,0.00015998,2]
[366148096,1750087840281,-669.08,0.00015998,2]
[366148098,1750087840291,-598.61,0.00015998,2]
[366148101,1750087840300,-490.0,0.00015998,2]
[366148104,1750087840310,-490.0,0.00015998,2]
[366148108,1750087840324,-684.14,0.00015998,2]
[366148110,1750087840334,-490.0,0.00015998,2]
[366148113,1750087840344,-490.0,0.00015998,2]
[366148117,1750087840354,-490.0,0.00015998,2]
[366148119,1750087840366,-490.0,0.00015998,2]
[366148122,1750087840375,-490.0,0.00015998,2]
[366148125,1750087840386,-195.3501031,0.00015998,2]
[366148128,1750087840397,-653.59,0.00015998,2]
[366148131,1750087840407,-667.82,0.00015998,2]
[366148134,1750087840417,-490.0,0.00015998,2]
[366148137,1750087840430,-490.0,0.00015998,2]
[366148140,1750087840442,-490.0,0.00015998,2]
[366148143,1750087840453,-490.0,0.00015998,2]
[366148146,1750087840463,-714.2,0.00015998,2]
[366148149,1750087840473,-490.0,0.00015998,2]
[366148152,1750087840482,-490.0,0.00015998,2]
[366148155,1750087840492,-490.0,0.00015998,2]
[366148158,1750087840503,-490.0,0.00015998,2]
[366148161,1750087840513,-490.0,0.00015998,2]
[366148164,1750087840523,-490.0,0.00015998,2]
[366148167,1750087840533,-490.0,0.00015998,2]
[366148170,1750087840543,-638.302732,0.00015998,2]
[366148173,1750087840554,-490.0,0.00015998,2]
[366148175,1750087840566,-691.64,0.00015998,2]
[366148178,1750087840575,-490.0,0.00015998,2]
[366148181,1750087840585,-490.0,0.00015998,2]
[366148184,1750087840595,-490.0,0.00015998,2]
[366148187,1750087840605,-490.0,0.00015998,2]
[366148190,1750087840615,-490.0,0.00015998,2]
[366148193,1750087840624,-490.0,0.00015998,2]
[366148196,1750087840634,-1094.96,0.00015998,2]
[366148199,1750087840646,-490.0,0.00015998,2]
[366148202,1750087840659,-490.0,0.00015998,2]
[366148205,1750087840669,-490.0,0.00015998,2]
[366148208,1750087840679,-490.0,0.00015998,2]
[366148211,1750087840689,-490.0,0.00015998,2]
[366148214,1750087840698,-490.0,0.00015998,2]
[366148217,1750087840709,-490.0,0.00015998,2]
[366148221,1750087840719,-490.0,0.00015998,2]
[366148224,1750087840729,-653.09,0.00015998,2]
[366148226,1750087840739,-664.08,0.00015998,2]
[366148229,1750087840749,-500.0,0.00015998,2]
[366148232,1750087840758,-457.60247496,0.00015998,2]
[366148235,1750087840768,-643.07,0.00015998,2]
[366148238,1750087840777,-490.0,0.00015998,2]
[366148241,1750087840787,-837.97,0.00015998,2]
[366148244,1750087840798,-490.0,0.00015998,2]
[366148247,1750087840808,-490.0,0.00015998,2]
[366148251,1750087840820,-490.0,0.00015998,2]
[366148253,1750087840830,-490.0,0.00015998,2]
[366148257,1750087840841,-490.0,0.00015998,2]
[366148260,1750087840851,-490.0,0.00015998,2]
[366148263,1750087840862,-943.56,0.00015998,2]
[366148266,1750087840873,-490.0,0.00015998,2]
[366148270,1750087840888,-1038.78,0.00015998,2]
[366148272,1750087840901,-577.45,0.00015998,2]
[366148276,1750087840912,-748.24,0.00015998,2]
[366148279,1750087840922,-490.0,0.00015998,2]
[366148282,1750087840932,-940.77,0.00015998,2]
[366148285,1750087840943,-490.0,0.00015998,2]
[366148288,1750087840954,-490.0,0.00015998,2]
[366148291,1750087840964,-490.0,0.00015998,2]
[366148293,1750087840973,-627.0,0.00015998,2]
[366148296,1750087840983,-1210.69,0.00015998,2]
[366148299,1750087840992,-674.56,0.00015998,2]
[366148302,1750087841002,-869.72,0.00015998,2]
[366148305,1750087841012,-490.0,0.00015998,2]
[366148307,1750087841022,-490.0,0.00015998,2]
[366148309,1750087841032,-490.0,0.00015998,2]
[366148311,1750087841042,-1013.82,0.00015998,2]
[366148314,1750087841051,-490.0,0.00015998,2]
[366148317,1750087841061,-490.0,0.00015998,2]
[366148320,1750087841072,-490.0,0.00015998,2]
[366148323,1750087841082,-494.88662358,0.00015998,2]
[366148326,1750087841092,-490.0,0.00015998,2]
[366148329,1750087841102,-490.0,0.00015998,2]
[366148332,1750087841111,-779.77,0.00015998,2]
[366148335,1750087841121,-490.0,0.00015998,2]
[366148338,1750087841131,-728.82,0.00015998,2]
[366148341,1750087841141,-946.8,0.00015998,2]
[366148345,1750087841155,-665.81,0.00015998,2]
[366148347,1750087841166,-1305.76,0.00015998,2]
[366148350,1750087841176,-1432.8,0.00015998,2]
[366148354,1750087841187,-2821.77,0.00015998,2]
[366148358,1750087841196,-915.46,0.00015998,2]
[366148361,1750087841206,-898.28,0.00015998,2]
[366148364,1750087841216,-6298.53,0.00015998,2]
[366148367,1750087841226,-490.0,0.00015998,2]
[366148369,1750087841236,-570.67,0.00015998,2]
[366148372,1750087841246,-896.48,0.00015998,2]
[366148375,1750087841256,-2135.45,0.00015998,2]
[366148378,1750087841267,-896.24,0.00015998,2]
[366148381,1750087841277,-877.68,0.00015998,2]
[366148384,1750087841286,-1507.16,0.00015998,2]
[366148387,1750087841296,-490.0,0.00015998,2]
[366148390,1750087841305,-2289.2,0.00015998,2]
[366148393,1750087841316,-490.0,0.00015998,2]
[366148396,1750087841326,-683.1,0.00015998,2]
[366148399,1750087841336,-1897.19,0.00015998,2]
[366148402,1750087841347,-490.0,0.00015998,2]
[366148405,1750087841356,-783.43,0.00015998,2]
[366148408,1750087841367,-957.52,0.00015998,2]
[366148411,1750087841376,-1937.74,0.00015998,2]
[366148414,1750087841386,-614.08,0.00015998,2]
[366148417,1750087841399,-490.0,0.00015998,2]
[366148420,1750087841409,-490.0,0.00015998,2]
[366148423,1750087841419,-1149.83,0.00015998,2]
[366148426,1750087841429,-1305.97,0.00015998,2]
[366148430,1750087841439,-490.0,0.00015998,2]
[366148433,1750087841449,-896.21,0.00015998,2]
[366148436,1750087841459,-490.0,0.00015998,2]
[366148439,1750087841471,-2675.93,0.00015998,2]
[366148442,1750087841482,-1310.88,0.00015998,2]
[366148445,1750087841492,-730.71,0.00015998,2]
[366148448,1750087841502,-767.34,0.00015998,2]
[366148451,1750087841512,-1273.9,0.00015998,2]
[366148454,1750087841522,-709.09,0.00015998,2]
[366148457,1750087841533,-3124.21,0.00015998,2]
[366148460,1750087841543,-651.63,0.00015998,2]
[366148463,1750087841554,-2307.68,0.00015998,2]
[366148466,1750087841565,-1183.98,0.00015998,2]
[366148469,1750087841574,-909.1,0.00015998,2]
[366148472,1750087841585,-594.11,0.00015998,2]
[366148475,1750087841595,-1575.93,0.00015998,2]
[366148478,1750087841604,-500.0,0.00015998,2]
[366148481,1750087841616,-490.0,0.00015998,2]
[366148484,1750087841626,-714.78,0.00015998,2]
[366148487,1750087841636,-490.0,0.00015998,2]
[366148490,1750087841648,-1149.56,0.00015998,2]
[366148494,1750087841658,-490.0,0.00015998,2]
[366148541,1750087841897,-3524.49,0.00015998,2]
[366148548,1750087841930,-490.0,0.00015998,2]
[366148551,1750087841940,-1711.87,0.00015998,2]
[366148554,1750087841951,-932.99,0.00015998,2]
[366148557,1750087841961,-1325.41,0.00015998,2]
[366148560,1750087841971,-490.0,0.00015998,2]
[366148563,1750087841980,-858.42,0.00015998,2]
[366148566,1750087841990,-3107.63,0.00015998,2]
[366148569,1750087841999,-1128.35,0.00015998,2]
[366148572,1750087842010,-1359.71,0.00015998,2]
[366148575,1750087842020,-1590.73,0.00015998,2]
[366148578,1750087842030,-500.0,0.00015998,2]
[366148581,1750087842040,-490.0,0.00015998,2]
[366148584,1750087842049,-1794.54,0.00015998,2]
[366148587,1750087842059,-1181.99,0.00015998,2]
[366148590,1750087842068,-1090.34,0.00015998,2]
[366148593,1750087842078,-727.81,0.00015998,2]
[366148596,1750087842088,-490.0,0.00015998,2]
[366148600,1750087842098,-6655.91,0.00015998,2]
[366148602,1750087842107,-1138.05,0.00015998,2]
[366148606,1750087842117,-490.0,0.00015998,2]
[366148609,1750087842127,-700.29,0.00015998,2]
[366148612,1750087842137,-490.0,0.00015998,2]
[366148614,1750087842150,-267.37888677,0.00015998,2]
[366148617,1750087842159,-2757.43,0.00015998,2]
[366148620,1750087842169,-490.0,0.00015998,2]
[366148623,1750087842179,-578.48,0.00015998,2]
[366148626,1750087842189,-2097.67,0.00015998,2]
[366148629,1750087842198,-562.03,0.00015998,2]
[366148632,1750087842208,-6143.77,0.00015998,2]
[366148635,1750087842218,-1479.95,0.00015998,2]
[366148639,1750087842228,-1297.15,0.00015998,2]
[366148642,1750087842238,-490.0,0.00015998,2]
[366148645,1750087842247,-490.0,0.00015998,2]
[366148648,1750087842257,-2034.83,0.00015998,2]
[366148651,1750087842266,-1149.85,0.00015998,2]
[366148653,1750087842276,-2677.16,0.00015998,2]
[366148655,1750087842286,-1707.26,0.00015998,2]
[366148657,1750087842296,-490.0,0.00015998,2]
[366148659,1750087842305,-656.79,0.00015998,2]
[366148661,1750087842318,-649.63,0.00015998,2]
[366148663,1750087842328,-3565.37,0.00015998,2]
[366148665,1750087842339,-670.73,0.00015998,2]
[366148667,1750087842349,-2088.89,0.00015998,2]
[366148669,1750087842359,-743.39,0.00015998,2]
[366148671,1750087842368,-490.0,0.00015998,2]
[366148673,1750087842378,-946.7,0.00015998,2]
[366148675,1750087842387,-637.32,0.00015998,2]
[366148677,1750087842399,-490.0,0.00015998,2]
[366148679,1750087842409,-490.0,0.00015998,2]
[366148681,1750087842419,-490.0,0.00015998,2]
[366148683,1750087842429,-2101.46,0.00015998,2]
[366148685,1750087842438,-600.1544575,0.00015998,2]
[366148724,1750087842892,-158.80720872,0.00015898,2]
[366148726,1750087842902,-104.2355425,0.00015998,2]
[366148728,1750087842912,-1980.12,0.00015998,2]
[366148730,1750087842921,-878.97,0.00015998,2]
[366148732,1750087842931,-758.19,0.00015998,2]
[366148734,1750087842940,-500.0,0.00015998,2]
[366148736,1750087842950,-500.0,0.00015998,2]
[366148738,1750087842959,-2173.05,0.00015998,2]
[366148740,1750087842968,-2129.4,0.00015998,2]
[366148742,1750087842978,-570.87,0.00015998,2]
[366148744,1750087842987,-2236.79,0.00015998,2]
[366148746,1750087842997,-615.55,0.00015998,2]
[366148748,1750087843006,-2949.04,0.00015998,2]
[366148750,1750087843016,-1485.77,0.00015998,2]
[366148752,1750087843025,-1496.36,0.00015998,2]
[366148754,1750087843034,-3210.46423918,0.00015998,2]
[366148756,1750087843050,-11582.87576082,0.00015998,2]
[366148758,1750087843060,-490.0,0.00015998,2]
[366148760,1750087843071,-490.0,0.00015998,2]
[366148762,1750087843081,-700.84,0.00015998,2]
[366148765,1750087843092,-781.39,0.00015998,2]
[366148767,1750087843102,-2398.94,0.00015998,2]
[366148769,1750087843112,-5796.77,0.00015998,2]
[366148771,1750087843122,-490.0,0.00015998,2]
[366148772,1750087843131,-1022.49,0.00015998,2]
[366148774,1750087843141,-199.30462458,0.00015998,2]
[366148834,1750087843690,-396.51506931,0.00015997,2]
[366148836,1750087843704,-93.48493069,0.00015997,2]
[366148838,1750087843714,-490.0,0.00015997,2]
[366148840,1750087843724,-250.0,0.00015997,2]
[366148842,1750087843734,-290.69537542,0.00015998,2]
[366148844,1750087843746,-781.51,0.00015998,2]
[366148846,1750087843756,-785.426976,0.00015998,2]
[366148848,1750087843765,-1429.71,0.00015998,2]
[366148850,1750087843775,-541.84,0.00015998,2]
[366148851,1750087843784,-490.0,0.00015998,2]
[366148854,1750087843794,-3.49401652,0.00015998,2]
[366148856,1750087843806,-535.17598348,0.00015998,2]
[366148858,1750087843816,-52.4868881,0.00015998,2]
[366149001,1750087846159,-479.89415,0.00015899,2]
[366149002,1750087846207,-4520.10585,0.00015899,2]
[366149003,1750087846217,-490.0,0.00015997,2]
[366149004,1750087846228,-490.0,0.00015997,2]
[366149005,1750087846238,-490.0,0.00015997,2]
[366149006,1750087846249,-572.8431119,0.00015998,2]
[366149007,1750087846259,-621.48,0.00015998,2]
[366149008,1750087846269,-3833.95,0.00015998,2]
[366149009,1750087846279,-868.65,0.00015998,2]
[366149010,1750087846289,-490.0,0.00015998,2]
[366149011,1750087846299,-698.55,0.00015998,2]
[366149012,1750087846310,-490.0,0.00015998,2]
[366149013,1750087846323,-490.0,0.00015998,2]
[366149014,1750087846333,-2296.56055261,0.00015998,2]
[366149015,1750087846349,-9238.10944739,0.00015998,2]
[366149017,1750087846359,-687.47,0.00015998,2]
[366149019,1750087846369,-666.0,0.00015999,2]
[366149021,1750087846379,-490.0,0.00015999,2]
[366149023,1750087846388,-641.72,0.00015999,2]
[366149025,1750087846400,-490.0,0.00015999,2]
[366149027,1750087846411,-490.0,0.00015999,2]
[366149029,1750087846420,-649.02,0.00015999,2]
[366149030,1750087846430,-663.76,0.00015999,2]
[366149031,1750087846440,-490.0,0.00015999,2]
[366149032,1750087846449,-694.39,0.00015999,2]
[366149033,1750087846459,-490.0,0.00015999,2]
[366149034,1750087846468,-490.0,0.00015999,2]
[366149035,1750087846478,-550.8,0.00015999,2]
[366149036,1750087846489,-490.0,0.00015999,2]
[366149037,1750087846499,-490.0,0.00015999,2]
[366149038,1750087846522,-490.0,0.00015999,2]
[366149039,1750087846535,-509.54658085,0.00015999,2]
[366149040,1750087846547,-490.0,0.00015999,2]
[366149041,1750087846558,-693.75,0.00015999,2]
[366149042,1750087846570,-490.0,0.00015999,2]
[366149043,1750087846581,-545.68,0.00015999,2]
[366149044,1750087846591,-490.74858407,0.00015999,2]
[366149045,1750087846602,-723.25,0.00015999,2]
[366149046,1750087846612,-1078.9,0.00015999,2]
[366149047,1750087846622,-490.0,0.00015999,2]
[366149048,1750087846633,-490.0,0.00015999,2]
[366149049,1750087846643,-490.0,0.00015999,2]
[366149050,1750087846654,-735.35,0.00015999,2]
[366149051,1750087846665,-492.06716092,0.00015999,2]
[366149052,1750087846675,-490.0,0.00015999,2]
[366149053,1750087846685,-560.92,0.00015999,2]
[366149054,1750087846695,-31.16616019,0.00015999,2]
[366149055,1750087846715,-577.56383981,0.00015999,2]
[366149056,1750087846726,-490.0,0.00015999,2]
[366149057,1750087846735,-680.83,0.00015999,2]
[366149058,1750087846747,-371.4683696,0.00015999,2]
[366149059,1750087846757,-297.38693575,0.00015999,2]
[366149060,1750087846792,-427.94306425,0.00015999,2]
[366149061,1750087846802,-490.0,0.00015999,2]
[366149062,1750087846812,-490.0,0.00015999,2]
[366149063,1750087846823,-490.0,0.00015999,2]
[366149064,1750087846834,-460.0,0.00015999,2]
[366149065,1750087846845,-490.0,0.00015999,2]
[366149066,1750087846855,-490.0,0.00015999,2]
[366149067,1750087846865,-490.0,0.00015999,2]
[366149068,1750087846875,-515.15551575,0.00015999,2]
[366149069,1750087846888,-253.44448425,0.00015999,2]
[366149070,1750087846900,-490.0,0.00015999,2]
[366149071,1750087846910,-490.0,0.00015999,2]
[366149072,1750087846921,-270.17507663,0.00015999,2]
[366149073,1750087847015,-219.82492337,0.00015999,2]
[366149074,1750087847025,-187.56984627,0.00015999,2]
[366149075,1750087847034,-490.0,0.00015999,2]
[366149076,1750087847045,-1477.63,0.00015999,2]
[366149077,1750087847056,-151.0,0.00015999,2]
[366149078,1750087847066,-151.0,0.00015999,2]
[366149079,1750087847076,-490.38849211,0.00015999,2]
[366149080,1750087847086,-490.0,0.00015999,2]
[366149081,1750087847096,-1142.16,0.00015999,2]
[366149082,1750087847106,-490.0,0.00015999,2]
[366149083,1750087847116,-490.0,0.00015999,2]
[366149084,1750087847127,-491.31348538,0.00015999,2]
[366149085,1750087847137,-490.0,0.00015999,2]
[366149086,1750087847149,-744.89,0.00015999,2]
[366149087,1750087847160,-492.47634167,0.00015999,2]
[366149088,1750087847170,-490.0,0.00015999,2]
[366149089,1750087847180,-490.0,0.00015999,2]
[366149090,1750087847190,-490.0,0.00015999,2]
[366149091,1750087847200,-446.7305332,0.00015999,2]
[366149092,1750087847243,-133.2694668,0.00015999,2]
[366149093,1750087847253,-1660.6,0.00015999,2]
[366149094,1750087847263,-490.0,0.00015999,2]
[366149095,1750087847274,-490.0,0.00015999,2]
[366149096,1750087847284,-454.86661319,0.00015999,2]
[366149097,1750087865639,500.0,0.00024657,120]
[366149098,1750087890648,500.0,0.00015068,2]
[366149099,1750087914914,392.0,0.0002465,120]
[366149100,1750087928814,400.0,0.00015198,2]
[366149101,1750087932730,201.0,0.00015266,2]
[366149103,1750087961658,206.0,0.00015266,2]
[366149125,1750088172235,715.4,0.00015032,2]
[366149127,1750088178220,200.0,0.00015032,7]
[366149129,1750088291863,201.0,0.00015143,2]
[366149131,1750088326857,150.0,0.00015482,2]
[366149132,1750088392312,999.0,0.00024658,120]
[366149133,1750088405129,491.4,0.00015001,2]
[366149139,1750088584851,166.36,0.0001541,2]
[366149142,1750088621744,201.0,0.00015006,2]
[366149143,1750088621784,-234.310761,0.00015546,2]
[366149144,1750088621810,-432.504996,0.00015625,2]
[366149145,1750088621838,-150.0,0.00015784,2]
[366149146,1750088621865,-150.0,0.00015793,2]
[366149147,1750088621891,-150.0,0.00015841,2]
[366149148,1750088621915,-250.0,0.00015857,2]
[366149149,1750088621940,-600.0,0.00015857,4]
[366149150,1750088621965,-207.4,0.0001589,2]
[366149151,1750088621989,-300.0,0.00015896,2]
[366149152,1750088622013,-1062.1067,0.00015897,2]
[366149153,1750088622037,-1200.0,0.00015897,2]
[366149154,1750088622063,-4720.52876557,0.00015897,2]
[366149155,1750088622087,-150.99,0.00015897,2]
[366149156,1750088622110,-300.0,0.00015897,2]
[366149157,1750088622133,-92.15877743,0.00015898,2]
[366149158,1750088622188,-4710.99447172,0.00015898,2]
[366149159,1750088622212,-158.3263815,0.00015898,2]
[366149160,1750088622236,-600.0,0.00015898,4]
[366149161,1750088622261,-4530.67914678,0.00015899,2]
[366149162,1750088622319,-201.0,0.00015888,3]
[366149163,1750088622344,-5627.65355322,0.00015899,2]
[366149164,1750088622369,-536.2078,0.00015899,2]
[366149165,1750088622394,-500.0,0.000159,2]
[366149166,1750088622418,-3000.0,0.000159,2]
[366149167,1750088622443,-135.13864678,0.000159,2]
[366149168,1750088622510,-2861.26035322,0.000159,2]
[366149169,1750088622536,-150.0,0.00015903,2]
[366149170,1750088622562,-150.0,0.00015944,2]
[366149171,1750088622590,-600.0,0.00015953,4]
[366149172,1750088622615,-150.0,0.00015961,2]
[366149173,1750088622640,-152.0,0.00015988,3]
[366149174,1750088622666,-151.0,0.00015988,2]
[366149175,1750088622690,-151.0,0.00015988,2]
[366149176,1750088622715,-256.4583895,0.00015988,2]
[366149177,1750088622739,-1970.91269339,0.00015996,2]
[366149178,1750088622764,-492.31512072,0.00015996,2]
[366149179,1750088622788,-778.46,0.00015996,2]
[366149180,1750088622812,-490.0,0.00015996,2]
[366149181,1750088622836,-490.0,0.00015996,2]
[366149182,1750088622861,-1156.59344317,0.00015996,2]
[366149183,1750088622910,-21.60655683,0.00015996,2]
[366149184,1750088622933,-490.0,0.00015996,2]
[366149185,1750088622957,-594.15,0.00015996,2]
[366149186,1750088622980,-318.51543686,0.00015996,2]
[366149187,1750088623002,-1186.52,0.00015996,2]
[366149188,1750088623025,-1025.92,0.00015996,2]
[366149189,1750088623047,-630.12641435,0.00015996,2]
[366149190,1750088623071,-490.0,0.00015996,2]
[366149191,1750088623095,-490.0,0.00015996,2]
[366149192,1750088623119,-490.0,0.00015996,2]
[366149193,1750088623141,-490.0,0.00015996,2]
[366149194,1750088623165,-490.0,0.00015996,2]
[366149195,1750088623188,-490.66507252,0.00015996,2]
[366149196,1750088623211,-490.0,0.00015996,2]
[366149197,1750088623236,-159.73,0.00015996,2]
[366149198,1750088623260,-492.40346016,0.00015996,2]
[366149199,1750088623284,-490.0,0.00015996,2]
[366149200,1750088623311,-677.76,0.00015996,2]
[366149201,1750088623336,-482.60305928,0.00015996,2]
[366149202,1750088623401,-7.39694072,0.00015996,2]
[366149203,1750088623426,-490.0,0.00015996,2]
[366149204,1750088623451,-707.65,0.00015996,2]
[366149205,1750088623476,-648.23,0.00015996,2]
[366149206,1750088623501,-619.24968589,0.00015996,2]
[366149207,1750088623526,-641.2,0.00015996,2]
[366149208,1750088623553,-538.62,0.00015996,2]
[366149209,1750088623580,-377.68775045,0.00015996,2]
[366149210,1750088623609,-490.0,0.00015996,2]
[366149211,1750088623635,-326.76951079,0.00015996,2]
[366149212,1750088623661,-490.0,0.00015996,2]
[366149213,1750088623688,-1295.53,0.00015996,2]
[366149214,1750088623713,-490.0,0.00015996,2]
[366149215,1750088623739,-490.0,0.00015996,2]
[366149216,1750088623766,-655.64,0.00015996,2]
[366149217,1750088623792,-656.25,0.00015996,2]
[366149218,1750088623819,-656.46,0.00015996,2]
[366149219,1750088623845,-419.31611215,0.00015996,2]
[366149220,1750088623903,-70.68388785,0.00015996,2]
[366149221,1750088623929,-291.97870996,0.00015996,2]
[366149222,1750088623955,-490.0,0.00015996,2]
[366149223,1750088623981,-490.0,0.00015996,2]
[366149224,1750088624008,-4280.21,0.00015996,2]
[366149225,1750088624033,-490.0,0.00015996,2]
[366149226,1750088624059,-490.0,0.00015996,2]
[366149227,1750088624088,-594.62,0.00015996,2]
[366149228,1750088624112,-490.0,0.00015996,2]
[366149229,1750088624137,-490.0,0.00015996,2]
[366149230,1750088624163,-626.35,0.00015996,2]
[366149231,1750088624430,-671.18,0.00015996,2]
[366149232,1750088624455,-524.97740219,0.00015996,2]
[366149233,1750088624490,-453.17259781,0.00015996,2]
[366149234,1750088624514,-490.0,0.00015996,2]
[366149235,1750088624539,-4163.16,0.00015996,2]
[366149236,1750088624566,-490.0,0.00015996,2]
[366149237,1750088624597,-2143.6,0.00015996,2]
[366149238,1750088624623,-490.0,0.00015996,2]
[366149239,1750088624649,-490.0,0.00015996,2]
[366149240,1750088624676,-490.0,0.00015996,2]
[366149241,1750088624701,-684.44,0.00015996,2]
[366149242,1750088624726,-105.62740219,0.00015996,2]
[366149243,1750088624821,-384.37259781,0.00015996,2]
[366149244,1750088624846,-748.83,0.00015996,2]
[366149245,1750088624872,-490.0,0.00015996,2]
[366149246,1750088624899,-490.0,0.00015996,2]
[366149247,1750088624925,-490.0,0.00015996,2]
[366149248,1750088624952,-783.02,0.00015996,2]
[366149249,1750088624979,-904.955227,0.00015996,2]
[366149250,1750088625003,-490.0,0.00015996,2]
[366149251,1750088625031,-617.65,0.00015996,2]
[366149252,1750088625054,-490.0,0.00015996,2]
[366149253,1750088625093,-703.3,0.00015996,2]
[366149254,1750088625121,-490.0,0.00015996,2]
[366149255,1750088625146,-490.01935487,0.00015996,2]
[366149256,1750088625171,-490.0,0.00015996,2]
[366149257,1750088625196,-697.4,0.00015996,2]
[366149258,1750088625223,-490.0,0.00015996,2]
[366149259,1750088625251,-750.45282032,0.00015996,2]
[366149260,1750088625286,-712.00717968,0.00015996,2]
[366149261,1750088625313,-877.32,0.00015996,2]
[366149262,1750088625338,-490.0,0.00015996,2]
[366149263,1750088625364,-618.068697,0.00015996,2]
[366149264,1750088625388,-214.8104788,0.00015996,2]
[366149265,1750088625414,-490.0,0.00015996,2]
[366149266,1750088625439,-1049.34,0.00015996,2]
[366149267,1750088625463,-490.0,0.00015996,2]
[366149268,1750088625492,-5058.45364452,0.00015996,2]
[366149269,1750088625549,-1270.34635548,0.00015996,2]
[366149270,1750088625575,-490.0,0.00015996,2]
[366149271,1750088625614,-261.66910165,0.00015996,2]
[366149272,1750088625641,-490.0,0.00015996,2]
[366149273,1750088625669,-490.0,0.00015996,2]
[366149274,1750088625695,-490.0,0.00015996,2]
[366149275,1750088625722,-501.02,0.00015996,2]
[366149276,1750088625748,-490.0,0.00015996,2]
[366149277,1750088625775,-1444.36,0.00015996,2]
[366149278,1750088625803,-490.0,0.00015996,2]
[366149279,1750088625829,-1076.84,0.00015996,2]
[366149280,1750088625855,-1183.67,0.00015996,2]
[366149281,1750088625882,-651.12,0.00015996,2]
[366149282,1750088625906,-279.36361421,0.00015996,2]
[366149283,1750088625932,-391.61092866,0.00015996,2]
[366149284,1750088625989,-98.38907134,0.00015996,2]
[366149285,1750088626014,-648.43,0.00015996,2]
[366149286,1750088626039,-500.0,0.00015996,2]
[366149287,1750088626065,-490.0,0.00015996,2]
[366149288,1750088626090,-490.0,0.00015996,2]
[366149289,1750088626121,-490.0,0.00015996,2]
[366149290,1750088626147,-1090.97,0.00015996,2]
[366149291,1750088626174,-490.0,0.00015997,2]
[366149292,1750088626200,-490.0,0.00015997,2]
[366149293,1750088626227,-490.0,0.00015997,2]
[366149294,1750088626252,-490.0,0.00015997,2]
[366149295,1750088626277,-490.0,0.00015997,2]
[366149296,1750088626305,-490.0,0.00015997,2]
[366149297,1750088626330,-490.0,0.00015997,2]
[366149298,1750088626355,-490.0,0.00015997,2]
[366149299,1750088626380,-490.0,0.00015997,2]
[366149300,1750088626406,-490.0,0.00015997,2]
[366149301,1750088626431,-490.0,0.00015997,2]
[366149302,1750088626456,-490.0,0.00015997,2]
[366149303,1750088626480,-312.21092866,0.00015997,2]
[366149304,1750088627139,-177.78907134,0.00015997,2]
[366149305,1750088627166,-490.0,0.00015997,2]
[366149306,1750088627190,-491.37023794,0.00015997,2]
[366149307,1750088627214,-499.32236933,0.00015997,2]
[366149308,1750088627238,-490.0,0.00015997,2]
[366149309,1750088627263,-490.0,0.00015997,2]
[366149310,1750088627288,-490.0,0.00015997,2]